bitfinex/quotes_ETHUSD_20220106
["timestamp","ask_amount","ask_price","bid_price","bid_amount"]
[1641487867513,1.84461038,3397.4,3397.3,1.02291068]
[1641487867709,1.84461038,3397.4,3397.3,1.02973176]
[1641487867913,1.84461038,3397.4,3397.3,1.32973176]
[1641487869960,3.46833836,3397.4,3397.3,1.02973176]
[1641487870168,9.6,3397.3,3396.9,1.12256523]
[1641487870361,0.73613,3397.1,3396.9,1.12256523]
[1641487870561,0.73613,3397.1,3397.0,0.00170527]
[1641487871362,0.73613,3397.1,3396.4,1.12256523]
[1641487871363,0.73613,3397.1,3396.5,0.00454739]
[1641487871560,1.4722728,3397.1,3396.5,0.00454739]
[1641487871761,0.73613,3396.8,3396.5,0.00454739]
[1641487872763,0.73613,3396.8,3396.4,0.00511581]
[1641487876011,4.29434754,3396.8,3396.4,0.00511581]
[1641487876212,5.76683684,3396.8,3396.4,0.00511581]
[1641487876515,0.73638,3396.6,3395.3,0.01136847]
[1641487876720,2.98221754,3396.5,3395.3,0.01136847]
[1641487876981,1.80460835,3395.6,3394.8,0.01421059]
[1641487877164,0.424,3395.5,3394.8,0.01421059]
[1641487877364,0.736607,3395.3,3394.8,0.01421059]
[1641487877564,0.7366,3395.2,3394.4,0.01648428]
[1641487877966,0.7366,3395.2,3394.4,1.14697632]
[1641487878366,0.7366,3395.2,3394.5,0.01591586]
[1641487878665,1.0,3395.4,3394.5,0.01591586]
[1641487878666,0.73641,3395.4,3394.5,0.01591586]
[1641487878863,2.51694278,3395.6,3394.5,0.01591586]
[1641487879064,7.66936429,3395.9,3394.5,0.01591586]
[1641487879267,7.83852909,3395.9,3394.5,0.01591586]
[1641487879467,6.33182783,3395.8,3394.6,0.29456]
[1641487879664,3.7285,3395.8,3394.6,0.29456]
[1641487879864,3.7285,3395.8,3394.7,0.01477901]
[1641487880063,3.7285,3395.8,3394.9,1.94884862]
[1641487880266,6.23450901,3395.8,3394.9,1.94884862]
[1641487880466,0.7364191,3395.7,3395.0,0.01307374]
[1641487880919,1.10528708,3395.6,3395.0,1.13563897]
[1641487881317,1.10528708,3395.6,3395.1,0.01250532]
[1641487881517,0.7364556,3395.5,3395.1,0.01250532]
[1641487882721,0.73643,3395.4,3395.1,0.01250532]
[1641487884120,3.26524982,3395.4,3395.1,0.01250532]
[1641487884320,9.67316,3395.2,3395.1,0.01250532]
[1641487884559,1.47316,3395.2,3395.1,0.01250532]
[1641487885166,1.47316,3395.2,3395.0,0.01307374]
[1641487885964,0.73657,3395.3,3395.0,0.01307374]
[1641487886163,0.73657,3395.3,3394.8,0.01421059]
[1641487886864,0.73657,3395.3,3394.9,1.12256523]
[1641487887265,0.73657,3395.3,3395.0,0.01307374]
[1641487888323,3.31464688,3395.6,3395.0,1.13563897]
[1641487888522,2.57820708,3395.6,3395.0,1.13563897]
[1641487888722,1.10528708,3395.6,3395.1,0.01250532]
[1641487889224,1.84170938,3395.7,3395.1,0.01250532]
[1641487889822,0.73643,3395.5,3395.1,0.01250532]
[1641487890227,0.736486,3395.4,3395.1,0.01250532]
[1641487890625,0.736486,3395.4,3395.2,0.91339954]
[1641487890626,2.28831233,3395.4,3395.2,0.91339954]
[1641487891025,2.28831233,3395.4,3395.3,0.01136847]
[1641487891225,3.02479233,3395.4,3395.3,0.01136847]
[1641487891624,1.472966,3395.4,3395.3,0.01136847]
[1641487892060,0.73648,3395.4,3395.3,0.01136847]
[1641487892662,3.22912776,3395.4,3395.3,0.01136847]
[1641487893064,0.73648,3395.4,3395.3,0.01136847]
[1641487893367,3.21503056,3395.4,3395.3,0.01136847]
[1641487893563,3.21503056,3395.4,3395.3,0.92476801]
[1641487893762,3.23969093,3395.4,3395.3,0.92476801]
[1641487896614,0.73648,3395.4,3395.3,0.92476801]
[1641487896815,3.22139212,3395.4,3395.3,0.92476801]
[1641487897014,4.22139212,3395.4,3395.3,0.92476801]
[1641487897616,10.35,3395.3,3394.9,1.12256523]
[1641487897816,0.73668,3395.1,3394.9,1.12256523]
[1641487898015,2.70188134,3395.0,3394.9,1.12256523]
[1641487898416,2.70188134,3395.0,3394.9,0.00227369]
[1641487898818,2.70188134,3395.0,3394.6,0.00397897]
[1641487899018,0.73669,3394.8,3394.6,0.00397897]
[1641487899322,3.24408132,3394.8,3394.6,0.00397897]
[1641487899568,0.73669,3394.8,3394.6,0.00397897]
[1641487899764,3.18171643,3394.8,3394.6,0.00397897]
[1641487899967,0.73669,3394.8,3394.6,0.00397897]
[1641487900965,1.10528708,3395.2,3394.6,0.00397897]
[1641487901867,1.10528708,3395.2,3394.9,1.64142293]
[1641487902069,0.7364525,3395.4,3395.0,1.12256523]
[1641487902266,1.4728825,3395.4,3395.0,1.1242705]
[1641487902467,1.4728825,3395.4,3395.1,0.00113685]
[1641487902668,1.10528708,3395.7,3395.2,1.39576025]
[1641487903076,0.00113685,3395.5,3395.2,1.39576025]
[1641487903319,0.00113685,3395.5,3395.3,0.3]
[1641487903512,0.00113685,3395.5,3395.3,0.59451]
[1641487904512,0.00113685,3395.5,3395.3,1.33076]
[1641487904816,0.00113685,3395.5,3395.3,2.82751363]
[1641487905111,0.00113685,3395.5,3395.4,10.774]
[1641487905311,0.00113685,3395.5,3395.4,11.774]
[1641487907469,0.00113685,3395.5,3395.4,0.424]
[1641487907870,0.00113685,3395.5,3395.4,8.024]
[1641487908973,0.00113685,3395.5,3395.4,7.024]
[1641487909170,0.00113685,3395.5,3395.4,0.424]
[1641487909371,0.00113685,3395.5,3395.4,1.424]
[1641487909770,0.00113685,3395.5,3395.4,7.624]
[1641487910374,0.00113685,3395.5,3395.4,1.424]
[1641487910814,0.00113685,3395.5,3395.4,6.274]
[1641487911825,0.00113685,3395.5,3395.4,1.424]
[1641487912219,0.00113685,3395.5,3395.4,0.424]
[1641487913517,0.00113685,3395.5,3395.4,1.91565977]
[1641487914988,0.00113685,3395.5,3395.4,0.424]
[1641487916889,0.00113685,3395.5,3395.4,1.424]
[1641487917091,0.00113685,3395.5,3395.4,2.91565977]
[1641487917287,0.00113685,3395.5,3395.4,1.91565977]
[1641487917489,0.00113685,3395.5,3395.4,2.91565977]
[1641487917688,0.00113685,3395.5,3395.4,1.91565977]
[1641487917889,0.00113685,3395.5,3395.4,3.76155481]
[1641487918090,0.00113685,3395.5,3395.4,2.76155481]
[1641487918322,0.00113685,3395.5,3395.4,3.76155481]
[1641487918512,0.00113685,3395.5,3395.4,2.26989504]
[1641487918713,0.00113685,3395.5,3395.4,3.00601504]
[1641487918916,0.00113685,3395.5,3395.4,2.00601504]
[1641487919113,0.00113685,3395.5,3395.4,3.00601504]
[1641487919315,0.00113685,3395.5,3395.4,2.00601504]
[1641487919513,0.00113685,3395.5,3395.4,3.00601504]
[1641487919814,1.61055842,3396.7,3395.5,10.3875395]
[1641487920013,1.61055842,3396.7,3396.1,0.73596]
[1641487920216,0.00625265,3396.6,3396.2,0.424]
[1641487920614,1.61055842,3396.9,3396.3,2.93284835]
[1641487920615,0.00568423,3396.5,3396.3,2.93284835]
[1641487920813,0.00568423,3396.5,3396.3,3.22722835]
[1641487921014,0.00511581,3396.4,3396.3,3.22722835]
[1641487921215,0.00511581,3396.4,3396.3,1.36051298]
[1641487921416,0.0073895,3396.4,3396.3,4.15735714]
[1641487921815,0.0073895,3396.4,3396.3,4.45735714]
[1641487922667,1.53487247,3396.4,3396.3,2.21202802]
[1641487924867,1.53487247,3396.4,3396.3,1.14589504]
[1641487925171,1.53487247,3396.4,3396.3,0.84589504]
[1641487925367,6.1144082,3396.4,3396.3,0.84589504]
[1641487925568,13.0006882,3396.4,3396.3,0.84589504]
[1641487925820,10.99567118,3396.4,3396.3,9.504e-05]
[1641487926223,10.35,3396.3,3395.9,1.12287464]
[1641487926422,10.35,3396.1,3395.7,1.49708279]
[1641487926623,10.35,3396.1,3395.3,1.11999754]
[1641487926624,3.04538706,3396.0,3395.3,1.11999754]
[1641487926922,2.15015299,3395.6,3395.3,1.11999754]
[1641487927124,2.58162496,3395.5,3395.3,1.11999754]
[1641487927323,2.86523324,3395.9,3395.3,1.11999754]
[1641487927523,2.86523324,3395.9,3395.0,2.76120653]
[1641487927524,2.2097007,3395.6,3395.0,2.76120653]
[1641487927724,0.73658,3395.5,3395.0,1.26412374]
[1641487927921,0.73658,3395.5,3395.1,0.0022737]
[1641487928723,0.73648,3395.3,3395.1,0.0022737]
[1641487929868,0.73648,3395.3,3394.7,0.00454739]
[1641487930668,3.24331374,3395.2,3394.7,0.00454739]
[1641487930868,0.736504,3395.2,3394.7,0.00454739]
[1641487931068,0.73652,3395.0,3394.7,0.00454739]
[1641487931770,2.47343125,3394.9,3394.7,0.00454739]
[1641487931968,0.73652,3395.0,3394.7,0.00454739]
[1641487931969,11.08667,3394.8,3394.7,0.00454739]
[1641487932173,10.35,3394.7,3394.4,1.49708279]
[1641487932470,10.35,3394.7,3394.5,0.00113685]
[1641487932669,21.21066247,3394.8,3394.4,1.49708279]
[1641487932670,12.02240232,3394.5,3394.4,0.40351964]
[1641487932870,11.77363,3394.5,3394.2,2.24532912]
[1641487933070,1.0,3394.4,3394.2,2.24532912]
[1641487933328,1.7368029,3394.4,3394.3,0.00113685]
[1641487933523,2.9472357,3394.5,3394.3,0.00113685]
[1641487933720,12.08682,3394.4,3394.1,0.00227369]
[1641487933922,10.80934384,3394.2,3394.1,0.00227369]
[1641487934121,1.60934384,3394.2,3394.1,0.00227369]
[1641487935725,4.13345016,3394.2,3394.1,0.00227369]
[1641487936124,4.79095038,3394.2,3394.1,0.00227369]
[1641487936978,2.29154384,3394.2,3394.1,0.00227369]
[1641487937177,1.60934384,3394.2,3394.1,0.00227369]
[1641487937579,1.7367956,3394.3,3394.1,0.00227369]
[1641487937778,0.7367956,3394.3,3394.1,0.00227369]
[1641487942720,0.73682,3394.4,3394.1,0.00227369]
[1641487942923,0.00113685,3394.7,3394.1,0.00227369]
[1641487944025,0.4948554,3395.0,3394.5,0.29458]
[1641487944230,3.44863615,3395.6,3394.6,2.25999666]
[1641487944476,0.00113685,3394.9,3394.6,2.25999666]
[1641487944768,0.00113685,3394.9,3394.6,2.55999666]
[1641487945369,0.00113685,3394.9,3394.6,1.43943844]
[1641487945571,0.00113685,3394.9,3394.6,3.66987898]
[1641487946369,0.00113685,3394.9,3394.6,4.25901898]
[1641487946569,0.00113685,3394.9,3394.7,0.76436952]
[1641487946771,1.70045316,3395.5,3394.8,10.35]
[1641487946978,1.70045316,3395.5,3395.0,0.7364]
[1641487947170,0.00284211,3395.4,3395.1,0.424]
[1641487947371,4.51125335,3396.1,3395.1,0.424]
[1641487947372,4.51125335,3396.1,3395.4,0.58896]
[1641487947675,2.20866414,3396.0,3395.4,0.58896]
[1641487947871,6.46507094,3396.4,3395.5,1.84169655]
[1641487948072,6.46507094,3396.4,3396.3,1.07401804]
[1641487948330,6.46507094,3396.4,3396.3,1.37401804]
[1641487948931,5.0,3396.4,3396.3,1.37401804]
[1641487954378,5.0,3396.4,3396.3,2.49637657]
[1641487956026,5.0,3396.4,3396.3,1.37401804]
[1641487957227,5.0,3396.4,3396.3,2.49637657]
[1641487958038,5.0,3396.4,3396.3,1.37401804]
[1641487960170,5.0,3396.4,3396.2,2.15295853]
[1641487960371,5.0,3396.4,3396.2,1.85849853]
[1641487960569,9.65170527,3396.3,3396.2,1.85849853]
[1641487960774,9.65170527,3396.3,3396.2,1.12235853]
[1641487961169,0.00170527,3396.3,3396.2,1.12235853]
[1641487961372,0.00170527,3396.3,3396.1,1.47228]
[1641487961571,0.48111527,3396.3,3396.1,1.47228]
[1641487967276,5.0,3396.4,3396.1,1.47228]
[1641487968278,5.0,3396.4,3396.2,0.87625861]
[1641487968279,1.59208666,3396.3,3396.2,0.87625861]
[1641487969581,1.59208666,3396.3,3396.2,1.17625861]
[1641487970724,1.5165,3396.4,3396.2,11.65185861]
[1641487970928,1.5165,3396.4,3396.2,14.64333915]
[1641487971127,1.10970202,3397.0,3396.3,7.05]
[1641487971327,1.10970202,3397.0,3396.5,0.29439]
[1641487971527,0.00341054,3396.9,3396.5,0.59439]
[1641487971725,1.10970202,3397.0,3396.5,0.59439]
[1641487971926,1.10970202,3397.0,3396.6,0.00170527]
[1641487972126,1.10970202,3397.0,3396.7,1.74897038]
[1641487972328,0.07969087,3397.1,3396.9,1.19304085]
[1641487972728,0.07969087,3397.1,3397.0,0.3]
[1641487973127,0.08082772,3397.1,3397.0,0.3]
[1641487973326,0.00113685,3397.1,3397.0,0.3]
[1641487973528,0.00113685,3397.1,3397.0,1.42273051]
[1641487975476,0.00113685,3397.1,3397.0,0.3]
[1641487978232,0.00113685,3397.1,3396.9,1.92898085]
[1641487980922,0.00113685,3397.1,3396.9,1.19304085]
[1641487981123,0.00113685,3397.1,3396.8,1.47189]
[1641487981328,0.00113685,3397.1,3396.6,0.00170527]
[1641487981724,0.00113685,3397.1,3396.4,0.00284211]
[1641487981983,0.73629,3396.8,3396.4,0.00284211]
[1641487982178,0.73629,3396.8,3396.5,0.73623]
[1641487982378,0.68629,3396.8,3396.5,0.73623]
[1641487982577,0.68629,3396.8,3396.6,0.00170527]
[1641487986922,0.68629,3396.8,3396.7,0.01143217]
[1641487987224,0.68629,3396.8,3396.7,0.01256901]
[1641487987922,7.38629,3396.8,3396.7,0.01256901]
[1641487988123,8.3984011,3396.8,3396.7,6.901e-05]
[1641487988323,10.35,3396.7,3395.5,1.47258]
[1641487988524,0.73642,3396.1,3396.0,0.00397897]
[1641487988725,1.63592,3396.1,3396.0,0.00397897]
[1641487989025,1.63592,3396.1,3395.5,0.00682108]
[1641487989027,7.73592,3396.1,3395.5,0.00682108]
[1641487989224,8.73592,3396.1,3395.5,0.00682108]
[1641487989487,2.63592,3396.1,3395.3,0.00795793]
[1641487989978,1.4729476,3396.0,3395.3,0.00795793]
[1641487990174,0.73644,3395.7,3395.3,0.00795793]
[1641487991177,0.73644,3395.7,3395.4,0.88999435]
[1641487991379,0.73644,3395.7,3395.4,1.62639435]
[1641487991577,0.73644,3395.7,3395.5,0.00682108]
[1641487993726,0.73644,3395.7,3395.6,0.92379508]
[1641487994126,0.73644,3395.7,3395.6,0.93004774]
[1641487995824,2.31742319,3395.7,3395.6,0.93004774]
[1641487996626,7.31742319,3395.7,3395.6,0.93004774]
[1641487997772,7.31742319,3395.7,3395.6,7.58004774]
[1641487997773,6.58098319,3395.7,3395.6,7.58004774]
[1641487997972,5.36808319,3395.7,3395.6,9.23004774]
[1641487998171,5.36808319,3395.7,3395.6,1.23004774]
[1641487999170,5.36808319,3395.7,3395.6,2.72406828]
[1641487999973,5.0,3395.7,3395.6,2.72406828]
[1641488003024,5.0,3395.7,3395.6,1.23004774]
[1641488005368,1.09770125,3396.5,3395.7,2.7169]
[1641488005673,1.09770125,3396.5,3396.0,0.73605]
[1641488005873,1.09770125,3396.5,3396.1,2.1144903]
[1641488006072,1.46507094,3396.8,3396.3,0.01294329]
[1641488006272,1.46507094,3396.8,3396.4,0.424]
[1641488006471,2.21734075,3397.0,3396.4,0.42570527]
[1641488006674,2.21734075,3397.0,3396.5,1.77915713]
[1641488006871,0.00113684,3396.9,3396.8,0.03245938]
[1641488007072,2.21734075,3397.0,3396.8,0.03245938]
[1641488007271,2.21734075,3397.8,3396.7,1.33136702]
[1641488007473,2.21734075,3397.8,3396.9,2.20749]
[1641488007671,2.21734075,3397.8,3397.7,0.3]
[1641488008070,2.22245657,3397.8,3397.1,0.58867]
[1641488008626,0.00454739,3397.7,3397.6,1.10782201]
[1641488009025,0.00454739,3397.7,3397.6,1.40782201]
[1641488011728,0.00454739,3397.7,3397.6,3.35287669]
[1641488012271,0.00454739,3397.7,3397.6,1.40782201]
[1641488013375,0.00454739,3397.7,3397.6,1.10782201]
[1641488013572,0.00454739,3397.7,3397.6,1.40782201]
[1641488013975,0.00454739,3397.7,3397.6,1.10782201]
[1641488014375,0.00454739,3397.7,3397.6,1.40782201]
[1641488014575,0.00454739,3397.7,3397.6,1.54282201]
[1641488014775,0.00454739,3397.7,3397.6,1.57328376]
[1641488015377,0.00454739,3397.7,3397.6,1.99728376]
[1641488015576,0.00454739,3397.7,3397.6,7.99728376]
[1641488015824,0.00454739,3397.7,3397.6,2.99728376]
[1641488016028,0.00454739,3397.7,3397.6,4.49329012]
[1641488016224,0.00454739,3397.7,3397.6,3.49329012]
[1641488016423,0.00454739,3397.7,3397.6,4.49329012]
[1641488016624,0.00454739,3397.7,3397.6,4.35829012]
[1641488017224,0.00454739,3397.7,3397.6,4.36608339]
[1641488017825,0.00454739,3397.7,3397.6,4.32782837]
[1641488018026,1.12100578,3398.5,3397.7,3.25]
[1641488018227,1.12100578,3398.5,3398.0,0.73569]
[1641488018426,1.12100578,3398.3,3397.9,0.58855]
[1641488018828,0.00284212,3398.2,3397.9,1.3242758]
[1641488019231,0.0022737,3398.1,3397.9,1.3242758]
[1641488019484,0.0022737,3398.1,3398.0,0.3]
[1641488019679,1.12100578,3398.2,3398.0,1.71599696]
[1641488020079,1.1238479,3398.2,3398.0,2.01026696]
[1641488020478,1.1238479,3398.2,3398.0,1.71599696]
[1641488020679,0.00284212,3398.2,3398.1,1.41599696]
[1641488021679,1.1238479,3398.2,3398.0,1.71026696]
[1641488021878,1.1238479,3398.2,3398.0,2.01026696]
[1641488022080,0.0022737,3398.1,3398.0,2.01026696]
[1641488022480,0.0022737,3398.1,3398.0,0.59427]
[1641488022680,0.0022737,3398.1,3398.0,0.3]
[1641488022881,0.0022737,3398.1,3397.9,1.12209645]
[1641488023327,10.35170527,3398.0,3397.7,1.12209645]
[1641488023727,0.00113685,3397.9,3397.7,0.26649645]
[1641488023929,1.71789584,3397.9,3397.7,0.26649645]
[1641488024123,0.73710685,3397.9,3397.7,0.26649645]
[1641488024323,0.73710685,3397.9,3397.4,1.49600636]
[1641488024524,0.73710685,3397.9,3397.2,1.25763738]
[1641488024724,2.9544476,3397.9,3397.5,0.00113685]
[1641488024924,2.9544476,3397.9,3397.2,1.25763738]
[1641488024925,2.9544476,3397.9,3397.3,0.00227369]
[1641488025725,2.2225321,3397.9,3397.3,0.00227369]
[1641488026725,1.48542525,3397.7,3397.3,0.00227369]
[1641488027677,1.48542525,3397.8,3397.3,0.00227369]
[1641488028173,0.00113685,3397.9,3397.3,0.00227369]
[1641488029875,5.0,3397.7,3397.3,0.00227369]
[1641488033941,1.09919579,3397.6,3397.3,0.00227369]
[1641488038227,1.09919579,3397.6,3397.3,1.38291774]
[1641488038425,1.09919579,3397.6,3397.3,1.38064405]
[1641488038625,1.09919579,3397.6,3397.4,0.00170527]
[1641488039026,1.83531579,3397.6,3397.4,0.00170527]
[1641488039227,11.82207,3397.5,3397.4,0.00170527]
[1641488039726,1.47207,3397.5,3397.4,0.00170527]
[1641488039926,1.47207,3397.5,3397.0,1.38064405]
[1641488039927,1.47207,3397.5,3397.1,0.00341054]
[1641488040128,0.7361,3397.3,3397.1,0.00341054]
[1641488040928,0.7361,3397.3,3397.0,0.00397896]
[1641488041529,0.7361,3397.3,3397.2,1.38064405]
[1641488041981,0.7361,3397.3,3397.2,1.38348617]
[1641488042188,0.7361,3397.3,3397.2,0.00284212]
[1641488042391,0.73598,3397.5,3397.2,0.00284212]
[1641488042582,1.48542525,3397.6,3397.2,0.00284212]
[1641488042984,5.0,3397.7,3397.2,0.00284212]
[1641488043382,5.0,3397.7,3397.1,2.75130654]
[1641488043582,5.0,3397.7,3397.2,1.00284212]
[1641488043984,5.0,3397.7,3397.3,0.00227369]
[1641488044585,5.0,3397.7,3397.4,0.7357853]
[1641488044788,4.99801175,3397.7,3397.4,0.7357853]
[1641488044984,4.99801175,3397.7,3397.5,0.00113684]
[1641488046231,4.99801175,3397.7,3397.5,1.38178089]
[1641488048332,4.99801175,3397.7,3397.5,0.00113684]
[1641488048732,5.73394175,3397.7,3397.3,0.00227369]
[1641488050213,5.73394175,3397.7,3397.3,1.38291774]
[1641488050613,5.73394175,3397.7,3397.4,0.00170527]
[1641488051020,4.99801175,3397.7,3397.4,0.00170527]
[1641488052017,4.99801175,3397.7,3397.4,1.38064405]
[1641488052420,4.99801175,3397.7,3397.5,0.00113684]
[1641488053444,4.99801175,3397.7,3397.5,1.38064405]
[1641488057573,1.09758496,3397.6,3397.5,1.38064405]
[1641488057976,1.09758496,3397.6,3397.5,1.68178089]
[1641488058173,1.09758496,3397.6,3397.5,1.38178089]
[1641488058978,1.09758496,3397.6,3397.5,0.00113684]
[1641488059775,1.09758496,3397.6,3397.5,1.38178089]
[1641488060729,1.09758496,3397.6,3397.5,1.68178089]
[1641488062128,4.99801175,3397.7,3397.5,1.68178089]
[1641488062326,4.99801175,3397.7,3397.5,2.80442308]
[1641488063327,4.99801175,3397.7,3397.5,3.09872308]
[1641488063731,4.99801175,3397.7,3397.6,1.38064405]
[1641488065578,6.06088408,3397.7,3397.6,1.38064405]
[1641488067375,4.99801175,3397.7,3397.6,1.38064405]
[1641488071128,4.99801175,3397.7,3397.6,2.38064405]
[1641488071327,4.99801175,3397.7,3397.6,3.50328624]
[1641488071983,4.99801175,3397.7,3397.6,2.38064405]
[1641488074178,4.99801175,3397.7,3397.6,2.33064405]
[1641488074678,4.99801175,3397.7,3397.6,3.45000145]
[1641488076739,4.99801175,3397.7,3397.6,2.33064405]
[1641488077733,4.99801175,3397.7,3397.6,1.33064405]
[1641488079136,4.99801175,3397.7,3397.6,1.63064405]
[1641488081496,4.99801175,3397.7,3397.6,1.33064405]
[1641488081702,7.58021462,3397.7,3397.6,1.33064405]
[1641488081898,10.35,3397.6,3397.5,0.00113684]
[1641488082204,4.99801175,3397.7,3397.5,0.00113684]
[1641488082396,4.29158225,3397.6,3397.3,0.00227369]
[1641488082800,4.29158225,3397.6,3397.1,0.00341054]
[1641488083000,4.29158225,3397.6,3396.9,0.00454739]
[1641488083236,5.76369885,3397.6,3396.9,0.00454739]
[1641488083436,5.02761225,3397.6,3396.9,0.00454739]
[1641488083639,1.01085,3397.4,3396.8,0.00511581]
[1641488083831,3.07376389,3397.3,3396.8,0.00511581]
[1641488084232,3.07376389,3397.3,3396.5,0.00682108]
[1641488084432,0.73618,3396.9,3396.5,0.00682108]
[1641488084632,2.51374034,3396.8,3396.5,0.00682108]
[1641488084833,2.9789317,3397.2,3396.5,0.00682108]
[1641488085434,1.47241,3396.9,3396.5,0.00682108]
[1641488085633,5.73882294,3396.0,3395.9,0.01023162]
[1641488085834,3.57504294,3396.0,3395.9,0.01023162]
[1641488086237,0.8499,3396.0,3395.9,1.01571623]
[1641488086835,1.2031,3396.8,3395.9,1.31571623]
[1641488087086,4.2462,3396.9,3395.9,1.31571623]
[1641488087087,3.8222,3396.9,3395.9,1.31571623]
[1641488087284,5.5129511,3396.9,3396.0,0.0096632]
[1641488087485,2.68793382,3396.8,3396.0,0.0096632]
[1641488088686,0.73622,3396.5,3396.0,0.0096632]
[1641488092336,3.42409382,3396.8,3396.0,0.0096632]
[1641488092637,0.73616,3396.8,3396.0,0.0096632]
[1641488093434,3.25045229,3396.8,3396.0,0.0096632]
[1641488093635,0.73616,3396.8,3396.0,0.0096632]
[1641488093935,0.7361,3397.0,3396.0,0.0096632]
[1641488094143,1.1927,3397.2,3396.0,0.0096632]
[1641488094339,1.69402426,3397.5,3396.5,0.2944]
[1641488094582,1.69402426,3397.5,3396.5,0.3]
[1641488094784,5.08092415,3397.6,3396.7,0.7359264]
[1641488094982,2.22386174,3397.6,3396.7,0.7359264]
[1641488095182,2.22386174,3397.6,3396.8,0.00511581]
[1641488095583,2.22386174,3397.6,3396.9,0.73594]
[1641488095984,2.22386174,3397.6,3397.0,0.30397896]
[1641488096384,2.22386174,3397.6,3397.1,0.00341054]
[1641488096687,0.73599,3397.5,3397.1,0.00341054]
[1641488096983,0.73599,3397.5,3396.7,0.59439]
[1641488096984,0.73599,3397.5,3396.8,0.00511581]
[1641488097185,0.68599,3397.5,3396.8,0.00511581]
[1641488097391,0.68599,3397.5,3396.6,0.00625266]
[1641488100534,1.79261415,3397.5,3397.0,0.3]
[1641488100938,1.79261415,3397.5,3397.1,0.00341054]
[1641488101984,1.79261415,3397.5,3397.0,1.67505689]
[1641488101985,4.99801175,3397.7,3397.0,1.67903585]
[1641488102185,4.99801175,3397.7,3397.1,0.00341054]
[1641488102785,4.99801175,3397.7,3397.2,0.73578]
[1641488103185,4.99801175,3397.7,3397.3,0.00227369]
[1641488103490,4.99801175,3397.7,3397.3,1.76820659]
[1641488103884,4.99801175,3397.7,3397.4,0.00170527]
[1641488104685,4.99801175,3397.7,3397.5,0.7357667]
[1641488105387,4.99801175,3397.7,3397.6,1.35026004]
[1641488105586,4.99801175,3397.7,3397.6,1.65026004]
[1641488105839,4.99801175,3397.7,3397.6,1.35026004]
[1641488109983,4.99801175,3397.7,3397.5,1.35026004]
[1641488110783,4.99801175,3397.7,3397.6,1.35026004]
[1641488112384,4.99801175,3397.7,3397.6,1.65026004]
[1641488112586,4.99683552,3397.7,3397.6,1.65026004]
[1641488113229,4.99683552,3397.7,3397.6,2.38594004]
[1641488114131,4.99683552,3397.7,3397.6,5.78285663]
[1641488114331,4.99683552,3397.7,3397.6,6.23693427]
[1641488114532,4.99683552,3397.7,3397.6,8.54003303]
[1641488114730,4.99683552,3397.7,3397.6,11.30511038]
[1641488115330,4.99683552,3397.7,3397.6,7.20511038]
[1641488115731,4.99683552,3397.7,3397.6,10.70511038]
[1641488115932,4.99683552,3397.7,3397.6,7.90995539]
[1641488118085,4.99683552,3397.7,3397.6,7.17427539]
[1641488118286,4.99683552,3397.7,3397.6,6.17427539]
[1641488118885,4.99683552,3397.7,3397.6,7.28807336]
[1641488119086,4.99683552,3397.7,3397.6,8.28807336]
[1641488120087,4.99683552,3397.7,3397.6,7.17427539]
[1641488122339,4.99683552,3397.7,3397.6,8.28807336]
[1641488123036,4.99683552,3397.7,3397.6,7.17427539]
[1641488124240,4.99683552,3397.7,3397.6,6.17427539]
[1641488124681,4.99683552,3397.7,3397.6,7.17427539]
[1641488127988,4.99683552,3397.7,3397.6,7.90995539]
[1641488128438,4.99683552,3397.7,3397.6,7.17427539]
[1641488128841,4.99683552,3397.7,3397.6,6.87427539]
[1641488129138,4.99683552,3397.7,3397.6,5.87427539]
[1641488129739,4.99683552,3397.7,3397.6,5.45027539]
[1641488129943,4.99683552,3397.7,3397.6,1.95027539]
[1641488130343,4.99683552,3397.7,3397.6,1.48717539]
[1641488130538,5.73282552,3397.7,3397.6,1.48717539]
[1641488130739,38.51123563,3397.7,3397.6,1.48717539]
[1641488131446,38.51123563,3397.7,3397.6,0.60001535]
[1641488132494,37.77524563,3397.7,3397.6,0.60001535]
[1641488132689,4.99683552,3397.7,3397.6,0.60001535]
[1641488142594,4.94683552,3397.7,3397.6,0.60001535]
[1641488147006,4.94683552,3397.7,3397.6,1.70758977]
[1641488148307,5.68276552,3397.7,3397.6,1.70758977]
[1641488148605,5.68276552,3397.7,3397.6,0.60001535]
[1641488149206,4.94683552,3397.7,3397.6,0.60001535]
[1641488150609,4.94683552,3397.7,3397.6,1.91018993]
[1641488150846,4.94683552,3397.7,3397.1,0.11226434]
[1641488150847,0.29758007,3397.6,3397.1,0.11226434]
[1641488151239,0.29758007,3397.6,3397.1,0.11567488]
[1641488151740,4.94683552,3397.7,3397.1,0.11567488]
[1641488152639,4.94683552,3397.7,3397.3,1.10757442]
[1641488152841,4.94683552,3397.7,3397.6,0.11226434]
[1641488157597,4.94683552,3397.7,3397.5,0.11226434]
[1641488158243,4.94683552,3397.7,3397.5,0.84799434]
[1641488158841,4.94683552,3397.7,3397.6,0.11226434]
[1641488164397,4.94683552,3397.7,3397.6,3.61226434]
[1641488167748,4.94683552,3397.7,3397.6,6.34147131]
[1641488168143,4.94683552,3397.7,3397.6,3.61226434]
[1641488168344,4.94683552,3397.7,3397.6,4.61226434]
[1641488168550,4.94683552,3397.7,3397.6,7.22725634]
[1641488169146,4.0795423,3397.7,3397.6,15.47725634]
[1641488169346,4.0795423,3397.7,3397.6,17.67257144]
[1641488169597,3.78719438,3397.7,3397.6,9.42257144]
[1641488170894,2.15827758,3397.7,3397.6,11.02348981]
[1641488171101,0.456091,3399.0,3397.9,3.5]
[1641488171295,0.456091,3399.0,3398.7,0.11226434]
[1641488171494,0.456091,3399.0,3398.9,5.76226434]
[1641488171793,0.46348051,3399.0,3398.9,0.53626434]
[1641488172293,0.46348051,3399.0,3398.9,4.03626434]
[1641488172493,0.46348051,3399.0,3398.9,5.69930338]
[1641488172694,0.46348051,3399.0,3398.9,7.16991998]
[1641488174350,0.46348051,3399.0,3398.9,8.54877799]
[1641488174855,0.46348051,3399.0,3398.9,7.81347139]
[1641488175052,0.46348051,3399.0,3398.9,8.54884979]
[1641488176054,0.46348051,3399.0,3398.9,7.81347139]
[1641488176455,0.46348051,3399.0,3398.9,8.54885439]
[1641488176654,0.0796885,3399.7,3399.2,0.11226434]
[1641488176857,0.0796885,3399.7,3399.6,3.41226434]
[1641488177091,0.0796885,3399.7,3399.6,4.53164018]
[1641488177290,1.11362415,3400.0,3399.7,0.11226434]
[1641488177490,1.11362415,3400.0,3399.9,0.11226434]
[1641488177690,1.79783064,3400.5,3399.9,0.11226434]
[1641488177892,1.79783064,3400.5,3400.2,0.11226434]
[1641488178092,5.04543064,3400.8,3400.2,0.11226434]
[1641488178392,0.00795793,3400.4,3400.2,0.11226434]